Cogmind - Beta 16 @@@ ROGUE MODE // 2025.12.31 @ 01:40:15 Player: telemetry Result: Destroyed by P-80 Master with Gamma Rifle Performance ------------- Evolutions (7) 3500 Regions Visited (14) 2800 Robots Destroyed (68) 340 Value Destroyed (1385) 1385 Prototype IDs (8) 160 Alien Tech Used (0) 0 Bonus (507) 507 TOTAL SCORE: 8692 Bonus ------- Follower Combat Kills 7 Entered DSFs 500 Cogmind --------- Core Integrity 0/1300 Matter 51/300 Energy 99/100 System Corruption 3% Temperature Cool (0) Movement Core (50) Location -3/Research Parts ------- > --- POWER (2) -------- (None) > --- PROPULSION (7) --- (None) > --- UTILITY (10) ----- Improved Signal Interpreter Advanced Signal Interpreter Advanced Signal Interpreter > --- WEAPON (2) ------- (None) > --- INVENTORY (5) ---- System Shield Improved Plasma Cutter Peak State ------------ > --- POWER ------------ Micro Fission Core Improved Fusion Compressor > --- PROPULSION ------- Linear Gravjet Linear Gravjet Cooled Gravmag System Cooled Gravmag System Cesium-ion Thruster Cooled Cesium-ion Thruster Impulse Thruster > --- UTILITY ---------- Structural Scanner Structural Scanner Advanced Sensor Array Improved Signal Interpreter Advanced Signal Interpreter Terrain Scan Processor ECM Suite Propulsion Shielding > --- WEAPON ----------- Heavy Battle Rifle Katana > --- INVENTORY -------- Linear Gravjet Cesium-ion Thruster Medium Armor Plating Improved Plasma Cutter [Rating: 82] Favorites ----------- Power Micro Nuclear Core Engine Light Ion Engine Power Core Micro Nuclear Core Propulsion Light Treads Treads Light Treads Leg Carbon-fiber Leg Wheel Compact Wheel Hover Unit Airjet Flight Unit Cesium-ion Thruster Utility Medium Storage Unit Device Structural Scanner Storage Medium Storage Unit Processor Signal Interpreter Hackware Hacking Suite Protection Medium Armor Plating Weapon Improved Medium Laser Energy Gun Improved Medium Laser Ballistic Gun Heavy Battle Rifle Ballistic Cannon Bore Cannon Launcher Grenade Launcher Impact Weapon Flail Slashing Weapon Chainsword Piercing Weapon Enhanced Force Lance Build | -11 -10 -10 -9 -8 -7 -7 -7 -7 -6 -6 -6 -5 -4 -3 ------- Run | Yrd Mat Min Mat Mat Fac Was Fac DSF Fac Low Low Fac Fac Res Slots Evolved 14 | . . . 2 2 2 . . . 2 . . 2 2 2 Power 1 | . . . . . 1 . . . . . . . . . Propulsion 5 | . . . . 2 . . . . 1 . . . 1 1 Utility 8 | . . . 2 . 1 . . . 1 . . 2 1 1 Weapon . | . . . . . . . . . . . . . . . Parts Attached 89 | 6 10 4 12 4 14 . 3 1 1 7 . 13 5 9 Power 11 | 1 2 1 1 . 3 . . . 1 . . 1 . 1 Engine 4 | 1 1 . 1 . 1 . . . . . . . . . Core 7 | . 1 1 . . 2 . . . 1 . . 1 . 1 Reactor . | . . . . . . . . . . . . . . . Propulsion 36 | 2 2 2 3 3 7 . . 1 . 2 . 5 4 5 Treads 4 | 2 2 . . . . . . . . . . . . . Leg 2 | . . 2 . . . . . . . . . . . . Wheel 2 | . . . . 2 . . . . . . . . . . Hover 16 | . . . . . 7 . . 1 . . . 4 3 1 Flight 12 | . . . 3 1 . . . . . 2 . 1 1 4 Utility 30 | 1 4 . 6 1 3 . 3 . . 4 . 5 1 2 Device 13 | . . . 3 1 1 . 2 . . 1 . 3 1 1 Storage 4 | 1 2 . . . . . . . . 1 . . . . Processor 5 | . 1 . . . . . 1 . . . . 2 . 1 Hackware 1 | . . . . . 1 . . . . . . . . . Protection 7 | . 1 . 3 . 1 . . . . 2 . . . . Artifact . | . . . . . . . . . . . . . . . Weapon 12 | 2 2 1 2 . 1 . . . . 1 . 2 . 1 Energy Gun 3 | . 2 1 . . . . . . . . . . . . Energy Cannon . | . . . . . . . . . . . . . . . Ballistic Gun 3 | 2 . . . . . . . . . . . 1 . . Ballistic Cannon 1 | . . . 1 . . . . . . . . . . . Launcher 1 | . . . . . . . . . . 1 . . . . Special Weapon . | . . . . . . . . . . . . . . . Impact Weapon 1 | . . . 1 . . . . . . . . . . . Slashing Weapon 2 | . . . . . 1 . . . . . . 1 . . Piercing Weapon 1 | . . . . . . . . . . . . . . 1 Special Melee Weapon . | . . . . . . . . . . . . . . . Unidentified Prototypes 4 | . 1 . . . 1 . . . . . . 1 1 . Parts Lost 44 | . 1 . 5 1 3 . . 11 1 1 2 1 . 18 Power 6 | . . . 1 . 1 . . 2 . . . 1 . 1 Propulsion 15 | . . . 1 1 . . . 6 . . . . . 7 Utility 17 | . . . 2 . 2 . . 3 1 . 2 . . 7 Weapon 6 | . 1 . 1 . . . . . . 1 . . . 3 Highest Loss Streak 11 | . 1 . 2 1 2 . . 11 1 1 2 1 . 7 To Critical Strikes . | . . . . . . . . . . . . . . . Average Backups 7 | 1 7 9 7 8 9 10 9 8 4 4 4 3 4 3 Power . | . 1 1 . . . 1 1 1 . . . . . . Propulsion 1 | . 2 1 . . 3 4 4 3 . . 1 2 2 1 Utility 2 | . . 3 3 4 3 3 3 3 3 2 2 1 1 . Weapon 2 | . 3 4 3 2 2 2 1 1 1 . 1 . . . Tool/Special . | . . . . . . . . . . . . . . . Unused Backups 13 | . . 4 2 . 1 . . 1 . . 2 1 . 2 Power 2 | . . 1 . . . . . . . . 1 . . . Propulsion 7 | . . 3 1 . 1 . . 1 . . . 1 . . Utility 2 | . . . 1 . . . . . . . . . . 1 Weapon 1 | . . . . . . . . . . . 1 . . . Tool/Special 1 | . . . . . . . . . . . . . . 1 Average Slot Usage (%) 80 | . 98 100 86 73 87 92 92 74 13 23 44 70 86 59 Engine 2 | . 9 . 1 9 4 . . . . . . . . . Core 6 | . 4 14 4 . 9 15 15 11 . 2 6 5 5 2 Treads 7 | . 27 13 . . . . . . . . . . . . Leg 4 | . . 14 18 . . . . . . . . . . . Hover 7 | . . . . . 29 30 30 20 . . . 9 11 7 Flight 4 | . . . 2 21 . . . . . 4 13 16 18 15 Device 7 | . . . 5 14 14 15 22 19 6 2 5 9 18 9 Storage 8 | . 14 14 11 9 7 7 7 6 . 2 5 . . . Processor 9 | . 5 14 11 9 7 7 7 7 6 6 6 12 15 15 Protection 4 | . 7 . 9 . 3 7 . . . 2 6 5 5 . Energy Gun 11 | . 27 28 16 . . . . . . . . . . . Slashing Weapon 1 | . . . . . 5 7 7 7 . . . 2 5 2 Peak Build Rating 82 | 6 14 19 24 24 39 37 40 40 10 19 19 53 70 82 Average Rating 26 | 4 12 16 20 20 35 36 39 31 7 10 18 42 63 61 On Entrance 23 | . 6 14 19 16 18 37 37 40 7 4 19 14 53 70 Avg Prop Armor Cover (%) 12 | . . 13 . 6 6 . . . . . . 12 14 13 Naked Turns . | . . . . . . . . . . . . . . . Heaviest Build 38 | 11 24 23 38 24 33 33 33 27 1 9 9 19 17 17 Greatest Support 43 | 40 40 40 39 24 34 34 34 35 3 10 10 18 25 43 Greatest Overweight (x) 2 | 1 1 1 2 1 . . . 2 . . . 1 1 . Average Overweight (x) . | . . . . . . . . . . . . . . . Largest Inventory Capacity 10 | 8 10 10 10 10 10 10 10 10 5 5 5 5 5 5 Average Capacity 8 | 6 9 10 10 10 10 10 10 8 5 5 5 5 5 5 Most Carried 10 | 2 10 10 10 10 10 10 10 9 5 5 5 5 5 5 Average Carried 7 | 1 7 9 8 8 9 9 9 7 4 4 4 4 4 3 Final Capacity 10 | 8 10 10 10 10 10 10 10 5 5 5 5 5 5 5 Final Carried 10 | 2 10 10 9 9 10 10 9 5 5 5 4 4 5 2 Class Distribution -------------------- 63% | Mutant 12% | Scavenger-Sprinter 8% | Scout 6% | Sprinter 3% | Infiltrator-Ninja Dominant Class ---------------- Mutant | -10/Materials Mutant | -10/Mines Mutant | -9/Materials Sprinter | -8/Materials Mutant | -7/Factory Scout | -7/Waste Infiltrator-Ninja | -7/Factory Mutant | -7/DSF Mutant | -6/Factory Mutant | -6/Lower Caves Scavenger-Sprinter | -6/Lower Caves Scavenger-Sprinter | -5/Factory Scavenger-Ninja | -4/Factory Scavenger-Scout | -3/Research Resources | -11 -10 -10 -9 -8 -7 -7 -7 -7 -6 -6 -6 -5 -4 -3 ----------- Run | Yrd Mat Min Mat Mat Fac Was Fac DSF Fac Low Low Fac Fac Res Matter Collected 1158 | 159 265 107 205 25 200 . . . . 92 . 77 . 28 Remotely . | . . . . . . . . . . . . . . . Salvage Created 1908 | . 440 276 609 25 355 . . . . 16 . 159 . 28 Parts 134 | . 35 15 42 . 24 . . . . . . 18 . . Haulers Intercepted 1 | . . . . . 1 . . . . . . . . . Recyclers Shooed . | . . . . . . . . . . . . . . . Parts Field Recycled . | . . . . . . . . . . . . . . . Retrieved Matter . | . . . . . . . . . . . . . . . Parts Self-Destructed . | . . . . . . . . . . . . . . . Prevented . | . . . . . . . . . . . . . . . Parts Restored . | . . . . . . . . . . . . . . . Kills | -11 -10 -10 -9 -8 -7 -7 -7 -7 -6 -6 -6 -5 -4 -3 ------- Run | Yrd Mat Min Mat Mat Fac Was Fac DSF Fac Low Low Fac Fac Res Combat Hostiles Destroyed 37 | . 11 9 14 . 3 . . . . . . . . . Melee 3 | . . . . . 3 . . . . . . . . . Guns 31 | . 11 9 11 . . . . . . . . . . . Cannons 2 | . . . 2 . . . . . . . . . . . Classes Destroyed 10 | . 6 . 2 . 2 . . . . . . . . . Worker 4 | . 1 . . . 3 . . . . . . . . . Builder 15 | . 1 2 3 . 3 . . . . . . 5 . 1 Hauler 1 | . . . . . 1 . . . . . . . . . Recycler 1 | . 1 . . . . . . . . . . . . . Operator 4 | . . . 1 1 1 . . . . . . 1 . . Watcher 6 | . 2 . 1 . 2 . . . . . . 1 . . Swarmer 17 | . 6 5 6 . . . . . . . . . . . Grunt 12 | . 5 4 3 . . . . . . . . . . . Sentry 5 | . . . 5 . . . . . . . . . . . Programmer 3 | . . . . . 3 . . . . . . . . . Decomposer 2 | . . . . . . . . . . 2 . . . . Best Kill Streak 7 | . 7 3 5 1 4 . . . . . . 2 . 1 Combat Bots Only 5 | . 3 3 5 . 2 . . . . . . . . . Max Kills in Single Turn 1 | . 1 1 1 1 1 . . . . 1 . 1 . 1 Gunslinging . | . . . . . . . . . . . . . . . Exploded . | . . . . . . . . . . . . . . . Melee 1 | . . . . . 1 . . . . . . . . . Uniques/NPCs Destroyed . | . . . . . . . . . . . . . . . Combat | -11 -10 -10 -9 -8 -7 -7 -7 -7 -6 -6 -6 -5 -4 -3 -------- Run | Yrd Mat Min Mat Mat Fac Was Fac DSF Fac Low Low Fac Fac Res Hostile Shots Fired 614 | . 40 24 83 16 66 . . 38 19 24 24 10 38 232 Missed 276 | . 6 8 25 8 29 . . 11 15 10 11 4 16 133 Hits 338 | . 34 16 58 8 37 . . 27 4 14 13 6 22 99 Melee 4 | . . . . 1 . . . 3 . . . . . . Projectile 334 | . 34 16 58 7 37 . . 24 4 14 13 6 22 99 AOE 3 | . . . . . . . . 3 . . . . . . Critical Strikes 10 | . 1 . 2 1 . . . 3 . . 1 . 2 . Damage Taken 5940 | . 315 196 672 128 467 . . 734 122 334 210 171 308 2283 Core 2646 | . 52 47 185 42 52 . . 199 110 274 119 115 135 1316 Absorbed by Shields 99 | . . . . . . . . 53 . . . . . 46 Redirected to Shielding 42 | . . . . . . . . . . . 3 9 23 7 Core Remaining (%) 73 | 100 . 60 53 92 . . . 64 . . 40 88 88 . Volleys Fired 137 | . 40 17 53 . . . . . . 5 . 22 . . Largest 2 | . 2 2 2 . . . . . . 1 . 1 . . Hottest 112 | . 112 112 112 . . . . . . 30 . 33 . . Shots Fired 207 | . 66 34 80 . . . . . . 5 . 22 . . Gun 192 | . 66 34 70 . . . . . . . . 22 . . Cannon 10 | . . . 10 . . . . . . . . . . . Launcher 5 | . . . . . . . . . . 5 . . . . Special . | . . . . . . . . . . . . . . . Kinetic 32 | . . . 10 . . . . . . . . 22 . . Thermal 170 | . 66 34 70 . . . . . . . . . . . Explosive 5 | . . . . . . . . . . 5 . . . . Electromagnetic . | . . . . . . . . . . . . . . . Robot Hit Streak 18 | . 17 5 18 . . . . . . 8 . 9 . . Robot Miss Streak 4 | . 3 4 3 . . . . . . 1 . 1 . . Penetration Max . | . . . . . . . . . . . . . . . Secondary Targets 6 | . 1 4 1 . . . . . . . . . . . Max Gunslinging Chain 1 | . 1 1 1 . . . . . . . . . . . Shots Hit Robots 170 | . 39 18 57 3 30 . . . . 1 . 19 . 3 Core Hits 70 | . 18 13 22 . 7 . . . . 2 . 7 . 1 Critical Kills 4 | . . . 3 . 1 . . . . . . . . . Critical Parts Destroyed 2 | . . . 1 . 1 . . . . . . . . . Critical Strikes 21 | . 3 2 10 . 6 . . . . . . . . . Burn 11 | . 3 2 6 . . . . . . . . . . . Destroy 4 | . . . 4 . . . . . . . . . . . Smash 2 | . . . . . 2 . . . . . . . . . Sever 4 | . . . . . 4 . . . . . . . . . Melee Attacks 94 | . . . 2 9 50 . 5 . . . . 9 4 15 Impact 18 | . . . 2 9 7 . . . . . . . . . Slashing 71 | . . . . . 43 . 5 . . . . 9 4 10 Piercing 5 | . . . . . . . . . . . . . . 5 Sneak Attacks 13 | . . . . 1 11 . . . . . . . . 1 Combat Hostiles . | . . . . . . . . . . . . . . . Follow-up Attacks . | . . . . . . . . . . . . . . . Damage Inflicted 4448 | . 718 343 981 205 1481 . . . . 80 . 465 . 175 Guns 2333 | . 718 341 855 . . . . . . . . 419 . . Cannons 126 | . . . 126 . . . . . . . . . . . Explosions 80 | . . . . . . . . . . 80 . . . . Melee 1881 | . . . . 205 1481 . . . . . . 46 . 149 Ramming 28 | . . 2 . . . . . . . . . . . 26 Kinetic 545 | . . . 126 . . . . . . . . 419 . . Thermal 1914 | . 718 341 855 . . . . . . . . . . . Explosive 80 | . . . . . . . . . . 80 . . . . Electromagnetic . | . . . . . . . . . . . . . . . Impact 392 | . . . . 205 187 . . . . . . . . . Slashing 1489 | . . . . . 1294 . . . . . . 46 . 149 Piercing . | . . . . . . . . . . . . . . . Highest Corruption 12 | . 3 3 . 1 2 12 12 12 . . . . . 2 Average Corruption 3 | . 2 3 . 1 1 8 12 12 . . . . . 2 Corruption Purged . | . . . . . . . . . . . . . . . Corruption Blocked . | . . . . . . . . . . . . . . . Effects 49 | . 18 10 . . 9 2 5 2 . . . . . 3 Message Errors 13 | . 6 4 . . 1 . 1 . . . . . . 1 Matter Fused 7 | . 4 . . . 3 . . . . . . . . . Heat Flow Errors 7 | . 2 2 . . 1 . 2 . . . . . . . Energy Discharges 5 | . 3 2 . . . . . . . . . . . . Parts Rejected 3 | . . . . . 1 1 . 1 . . . . . . Parts Fused 1 | . 1 . . . . . . . . . . . . . Data Loss (minor) 6 | . 2 1 . . 1 . 1 . . . . . . 1 Data Loss (major) 4 | . . . . . 1 1 1 . . . . . . 1 Alerts 2 | . . 1 . . 1 . . . . . . . . . Misdirections 1 | . . . . . . . . 1 . . . . . . Overload Shots . | . . . . . . . . . . . . . . . Overflow Damage 438 | . . . 3 54 371 . . . . 2 . . . 8 Projectiles 3 | . . . 3 . . . . . . . . . . . Explosions 2 | . . . . . . . . . . 2 . . . . Melee 433 | . . . . 54 371 . . . . . . . . 8 Knockbacks . | . . . . . . . . . . . . . . . Impact . | . . . . . . . . . . . . . . . Kinetic . | . . . . . . . . . . . . . . . Secondary . | . . . . . . . . . . . . . . . Self-Inflicted Damage 26 | . . . . . . . . . . . . . . 26 Shots . | . . . . . . . . . . . . . . . Rammed . | . . . . . . . . . . . . . . . Targets Rammed 3 | . . 3 . . . . . . . . . . . . Kicked 3 | . . 3 . . . . . . . . . . . . Crushed . | . . . . . . . . . . . . . . . Highest Temperature 358 | . 358 274 276 5 287 . 198 . . . 5 . 8 . Average Temperature 106 | . 123 92 93 5 140 . 94 . . . 5 . 8 . Received Heat Transfer 639 | . 63 27 174 54 27 . . . . 60 111 18 27 78 Effects 9 | . 4 3 2 . . . . . . . . . . . Interference 7 | . 2 3 2 . . . . . . . . . . . Matter Decay 2 | . 2 . . . . . . . . . . . . . Siege Activations . | . . . . . . . . . . . . . . . Martial Activations . | . . . . . . . . . . . . . . . Shielding Activations . | . . . . . . . . . . . . . . . Robots Disrupted . | . . . . . . . . . . . . . . . Combat Hostiles . | . . . . . . . . . . . . . . . Robots Corrupted 3 | . . . . 1 2 . . . . . . . . . Combat Hostiles . | . . . . . . . . . . . . . . . Parts Fried 7 | . . . . 4 3 . . . . . . . . . Impact Corruptions 6 | . . . . 2 4 . . . . . . . . . Robots Melted 1 | . . . 1 . . . . . . . . . . . Combat Hostiles 1 | . . . 1 . . . . . . . . . . . Parts Melted 15 | . 3 4 8 . . . . . . . . . . . Heat Transferred 4847 | . 1739 851 2257 . . . . . . . . . . . Parts Sabotaged . | . . . . . . . . . . . . . . . Parts Stolen . | . . . . . . . . . . . . . . . Parts Stripped . | . . . . . . . . . . . . . . . Power Chain Reactions . | . . . . . . . . . . . . . . . Alert | -11 -10 -10 -9 -8 -7 -7 -7 -7 -6 -6 -6 -5 -4 -3 ------- Run | Yrd Mat Min Mat Mat Fac Was Fac DSF Fac Low Low Fac Fac Res Maximum Alert Level 1 | . . . 1 1 . . . . . . . . . 1 Low Security (%) 97 | 100 100 100 96 99 100 100 100 100 100 . . 100 100 78 Level 1 2 | . . . 3 . . . . . . . . . . 21 Level 2 . | . . . . . . . . . . . . . . . Level 3 . | . . . . . . . . . . . . . . . Level 4 . | . . . . . . . . . . . . . . . Level 5 . | . . . . . . . . . . . . . . . High Security . | . . . . . . . . . . . . . . . Max Security . | . . . . . . . . . . . . . . . Peak Influence 310 | . 124 93 214 221 134 43 35 15 30 . . 20 82 310 Initial 100 | . . 9 7 75 100 43 16 10 . . . 15 5 42 Average 56 | . 42 25 123 127 63 35 12 4 4 . . 4 41 83 Influence Increases 2994 | . 365 284 563 226 464 . 48 15 44 30 75 94 177 609 Destroy 0b10 Robot/C 760 | . 220 200 280 . 60 . . . . . . . . . Destroy 0b10 Robot/NC 155 | . 25 10 25 5 50 . . . . . . 35 . 5 Destroy Leader 214 | . 54 40 82 . 36 . . . . . . 2 . . Allied During Kill 4 | . . 4 . . . . . . . . . . . . Successful Hack 209 | . 51 . 18 22 38 . 14 . 14 . . . 38 14 Disable Machine 90 | . 15 15 15 . . . 15 . . . . . 15 15 Destroy Structure 62 | . . . 8 4 10 . 4 . . . . 12 4 20 Partial Spotted 165 | . . . . 45 15 . 15 . . . . 45 30 15 Lose Combat Pursuer 1335 | . . 15 135 150 255 . . 15 30 30 75 . 90 540 Influence Decreases 2684 | . 340 290 403 184 560 102 56 30 24 50 50 107 107 381 Entered New Map 412 | . . 16 12 104 121 82 7 5 . 8 . 10 7 40 Time Decay 1941 | . 340 254 341 70 412 20 49 . 14 42 30 91 100 178 Lost Part 311 | . . . 50 10 27 . . 25 10 . 20 6 . 163 Lost Ally 20 | . . 20 . . . . . . . . . . . . Squads Dispatched 25 | . 1 . 3 2 9 . . 1 . . . 4 2 3 Investigation 10 | . 1 . 1 1 3 . . . . . . 1 2 1 Extermination 5 | . . . . . 2 . . . . . . 1 . 2 Reinforcement 10 | . . . 2 1 4 . . 1 . . . 2 . . Assault . | . . . . . . . . . . . . . . . Garrison . | . . . . . . . . . . . . . . . Intercept . | . . . . . . . . . . . . . . . Searches Triggered . | . . . . . . . . . . . . . . . Construction Impeded 1 | . . . 1 . . . . . . . . . . . Haulers Reinforced . | . . . . . . . . . . . . . . . Active Scanning Responses . | . . . . . . . . . . . . . . . Cargo Convoy Interrupts . | . . . . . . . . . . . . . . . Stealth | -11 -10 -10 -9 -8 -7 -7 -7 -7 -6 -6 -6 -5 -4 -3 --------- Run | Yrd Mat Min Mat Mat Fac Was Fac DSF Fac Low Low Fac Fac Res Distress Signals 18 | . 2 . 6 2 1 . . . . . . 1 1 5 Communications Jammed . | . . . . . . . . . . . . . . . Distress Signals . | . . . . . . . . . . . . . . . Times Spotted 220 | . 19 11 36 14 36 6 . 5 4 2 7 10 18 52 Peak Tracking Total 17 | . 3 3 8 12 9 6 . 5 5 1 6 5 14 17 Tactical Retreats 42 | . . 1 4 3 6 . . 1 1 2 3 5 6 10 ECM-based Alert Blocks 17 | . . . . . . . . . . . . 6 11 . Traps | -11 -10 -10 -9 -8 -7 -7 -7 -7 -6 -6 -6 -5 -4 -3 ------- Run | Yrd Mat Min Mat Mat Fac Was Fac DSF Fac Low Low Fac Fac Res Traps Triggered 11 | . 3 1 . . 2 . . 2 1 . . 1 . 1 Indirectly . | . . . . . . . . . . . . . . . Trap Hack Attempts . | . . . . . . . . . . . . . . . Triggered . | . . . . . . . . . . . . . . . Disarmed . | . . . . . . . . . . . . . . . Reprogrammed . | . . . . . . . . . . . . . . . Reused . | . . . . . . . . . . . . . . . Traps Extracted . | . . . . . . . . . . . . . . . Installed . | . . . . . . . . . . . . . . . Triggered . | . . . . . . . . . . . . . . . Machines | -11 -10 -10 -9 -8 -7 -7 -7 -7 -6 -6 -6 -5 -4 -3 ---------- Run | Yrd Mat Min Mat Mat Fac Was Fac DSF Fac Low Low Fac Fac Res Machines Disabled 6 | . 1 1 1 . . . 1 . . . . . 1 1 Max in Single Turn 1 | . 1 1 1 . . . 1 . . . . . 1 1 Garrison Access 3 | . . . . . 2 . . . . . . 1 . . Machines Repaired . | . . . . . . . . . . . . . . . Machines Dismantled . | . . . . . . . . . . . . . . . Machines Sabotaged . | . . . . . . . . . . . . . . . Overloaded Fab Kills . | . . . . . . . . . . . . . . . Hacking | -11 -10 -10 -9 -8 -7 -7 -7 -7 -6 -6 -6 -5 -4 -3 --------- Run | Yrd Mat Min Mat Mat Fac Was Fac DSF Fac Low Low Fac Fac Res Machines Accessed 41 | . 9 1 5 3 8 . 2 . 1 1 . 5 3 3 Terminals 30 | . 8 . 4 3 4 . 2 . 1 1 . 3 3 1 Fabricators . | . . . . . . . . . . . . . . . Repair Stations 3 | . 1 . . . 1 . . . . . . . . 1 Recycling Units 1 | . . . . . 1 . . . . . . . . . Scanalyzers 3 | . . . 1 . . . . . . . . 1 . 1 Garrison Access 3 | . . . . . 2 . . . . . . 1 . . Total Hacks 125 | . 39 1 19 10 19 . 3 . 2 1 . 9 11 11 Successful 57 | . 19 1 10 5 7 . 2 . 1 1 . 5 4 2 Failed 67 | . 20 . 8 5 12 . 1 . 1 . . 4 7 9 Catastrophic 9 | . 2 . 2 . 2 . . . . . . 1 . 2 Database Lockouts 1 | . . . 1 . . . . . . . . . . . Manual 71 | . 28 . 10 5 8 . 2 . 2 . . 4 10 2 Terminals 96 | . 34 . 13 10 12 . 3 . 2 1 . 6 11 4 Fabricators . | . . . . . . . . . . . . . . . Repair Stations 9 | . 5 . . . 2 . . . . . . . . 2 Recycling Units 1 | . . . . . 1 . . . . . . . . . Scanalyzers 13 | . . . 6 . . . . . . . . 2 . 5 Garrison Access 5 | . . . . . 4 . . . . . . 1 . . Terminal Hacks 21 | . 11 1 2 2 1 . 1 . . 1 . . 2 . Record 3 | . . . . . . . . . . 1 . . 2 . Robot Analysis 2 | . 2 . . . . . . . . . . . . . Prototype ID Bank 2 | . 1 . 1 . . . . . . . . . . . Open Door 1 | . . 1 . . . . . . . . . . . . Open DSF 2 | . . . . . 1 . 1 . . . . . . . Terminal Index 1 | . 1 . . . . . . . . . . . . . Locate Traps 3 | . 3 . . . . . . . . . . . . . Patrol Status 1 | . . . 1 . . . . . . . . . . . Recall Reinforcements 1 | . . . . 1 . . . . . . . . . . Registered Components 1 | . 1 . . . . . . . . . . . . . Zone Layout 4 | . 3 . . 1 . . . . . . . . . . Fabricator Hacks . | . . . . . . . . . . . . . . . Repair Station Hacks 3 | . 2 . . . 1 . . . . . . . . . Scan Component 3 | . 2 . . . 1 . . . . . . . . . Recycling Unit Hacks 1 | . . . . . 1 . . . . . . . . . Report Inventory 1 | . . . . . 1 . . . . . . . . . Scanalyzer 7 | . . . 4 . . . . . . . . 2 . 1 Retrieve Study 7 | . . . 4 . . . . . . . . 2 . 1 Garrison Access Hacks 3 | . . . . . 2 . . . . . . 1 . . Seal Access 3 | . . . . . 2 . . . . . . 1 . . Unauthorized Hacks 22 | . 6 . 4 3 2 . 1 . 1 . . 2 2 1 Terminals 22 | . 6 . 4 3 2 . 1 . 1 . . 2 2 1 Botnet 22 | . 6 . 4 3 2 . 1 . 1 . . 2 2 1 Fabricators . | . . . . . . . . . . . . . . . Repair Stations . | . . . . . . . . . . . . . . . Recycling Units . | . . . . . . . . . . . . . . . Scanalyzers . | . . . . . . . . . . . . . . . Garrison Access . | . . . . . . . . . . . . . . . Data Cores Recovered 2 | . . . . 1 . . . . . . . 1 . . Used . | . . . . . . . . . . . . . . . Hacking Detections 38 | . 9 . 5 3 8 . 1 . 1 1 . 4 3 3 Full Trace Events 16 | . 6 . 3 1 2 . . . . . . 1 2 1 Feedback Events 1 | . . . . . 1 . . . . . . . . . Corruption 1 | . . . . . 1 . . . . . . . . . Feedback Blocked . | . . . . . . . . . . . . . . . Robot Schematics Acquired . | . . . . . . . . . . . . . . . Robots Built . | . . . . . . . . . . . . . . . Authchips . | . . . . . . . . . . . . . . . Time . | . . . . . . . . . . . . . . . Total Robot Build Rating . | . . . . . . . . . . . . . . . Part Schematics Acquired . | . . . . . . . . . . . . . . . Parts Built . | . . . . . . . . . . . . . . . Authchips . | . . . . . . . . . . . . . . . Time . | . . . . . . . . . . . . . . . Total Part Build Rating . | . . . . . . . . . . . . . . . Part Studies Acquired 5 | . . . 2 . . . . . . . . 2 . 1 Parts Repaired . | . . . . . . . . . . . . . . . Time . | . . . . . . . . . . . . . . . Parts Recycled . | . . . . . . . . . . . . . . . Recycled Matter . | . . . . . . . . . . . . . . . Retrieved Matter . | . . . . . . . . . . . . . . . Retrieved Components . | . . . . . . . . . . . . . . . Parts Scanalyzed . | . . . . . . . . . . . . . . . Part Schematics Acquired . | . . . . . . . . . . . . . . . Parts Damaged . | . . . . . . . . . . . . . . . Bothacking | -11 -10 -10 -9 -8 -7 -7 -7 -7 -6 -6 -6 -5 -4 -3 ------------ Run | Yrd Mat Min Mat Mat Fac Was Fac DSF Fac Low Low Fac Fac Res Used RIF Installer . | . . . . . . . . . . . . . . . Robots Hacked . | . . . . . . . . . . . . . . . Non-combat . | . . . . . . . . . . . . . . . Combat . | . . . . . . . . . . . . . . . Robot Hacks Applied . | . . . . . . . . . . . . . . . Relay Couplers Released . | . . . . . . . . . . . . . . . Fabnet Peak Effective % . | . . . . . . . . . . . . . . . Robots Rewired . | . . . . . . . . . . . . . . . Allies Hacked . | . . . . . . . . . . . . . . . Hacks Repelled . | . . . . . . . . . . . . . . . Allies | -11 -10 -10 -9 -8 -7 -7 -7 -7 -6 -6 -6 -5 -4 -3 -------- Run | Yrd Mat Min Mat Mat Fac Was Fac DSF Fac Low Low Fac Fac Res Total Allies 1 | . . 1 . . . . . . . . . . . . Largest Group 1 | . . 1 . . . . . . . . . . . . Highest-Rated Group 31 | . . 31 . . . . . . . . . . . . Highest-Rated Ally 31 | . . 31 . . . . . . . . . . . . Total Orders . | . . . . . . . . . . . . . . . Ally Attacks 9 | . . 9 . . . . . . . . . . . . Total Damage 123 | . . 123 . . . . . . . . . . . . Kills 1 | . . 1 . . . . . . . . . . . . Allies Corrupted . | . . . . . . . . . . . . . . . Allies Melted . | . . . . . . . . . . . . . . . Intel | -11 -10 -10 -9 -8 -7 -7 -7 -7 -6 -6 -6 -5 -4 -3 ------- Run | Yrd Mat Min Mat Mat Fac Was Fac DSF Fac Low Low Fac Fac Res Active Infowar (turns) 2864 | . . . 343 11 1049 48 157 63 64 176 163 276 206 308 Sensors 2311 | . . . 343 11 949 . 122 63 64 176 163 . 112 308 Structural 1374 | . . . . . 405 48 157 49 . . . 276 206 233 Jamming 188 | . . . . . . . 150 38 . . . . . . ECM 324 | . . . . . . . . . . . . 219 105 . Robot Analysis Total 2 | . 2 . . . . . . . . . . . . . Derelict Logs Recovered 3 | . . 1 . . . . . . . 2 . . . . Drone Launches . | . . . . . . . . . . . . . . . Drone Recoveries . | . . . . . . . . . . . . . . . Exploration | -11 -10 -10 -9 -8 -7 -7 -7 -7 -6 -6 -6 -5 -4 -3 ------------- Run | Yrd Mat Min Mat Mat Fac Was Fac DSF Fac Low Low Fac Fac Res Turns Passed 6214 | 54 1135 920 863 147 1049 48 157 63 65 442 192 416 206 457 Spaces Moved 7857 | 31 599 606 566 231 1327 99 293 81 122 1013 560 975 473 881 Core 663 | 5 . . 5 . . . . 9 122 507 . . . 15 Treads 866 | 26 599 241 . . . . . . . . . . . . Legs 706 | . . 365 341 . . . . . . . . . . . Wheels . | . . . . . . . . . . . . . . . Hover 1783 | . . . . . 1318 99 293 72 . . . . 1 . Flight 3839 | . . . 220 231 9 . . . . 506 560 975 472 866 Fastest Speed 27 | 50 160 120 32 29 37 45 45 45 50 32 32 29 27 28 Average Speed 59 | 143 160 136 99 36 45 45 45 50 50 41 32 30 28 34 Slowest Speed 240 | 160 240 190 190 112 60 45 45 170 50 50 32 115 100 50 Overloaded Moves . | . . . . . . . . . . . . . . . Propulsion Burnouts . | . . . . . . . . . . . . . . . Robots Hopped 4 | . . . 1 . . . . . . 1 . 1 . 1 Potential Cave-ins . | . . . . . . . . . . . . . . . Cave-ins Triggered . | . . . . . . . . . . . . . . . Exploration Rate (%) 45 | 4 85 96 38 21 36 95 8 85 4 95 50 32 13 22 Regions Visited 14 Branch Regions 3 Pre-discovered Areas 2 | . . 2 . . . . . . . . . . . . Known Exits Taken 9 | . 1 1 1 . . . 1 . 1 1 1 1 1 . Unknown Exits Taken 2 | 1 . . . 1 . . . . . . . . . . Scrap Searched 3 | . . 2 . . . . . . . 1 . . . . Spaces Dug 66 | . . . 2 6 11 . 4 . . 24 . 6 2 11 Terrain Destroyed 88 | . . . 7 6 11 . 4 . . 41 . 6 2 11 Melee 42 | . . . 2 6 11 . 4 . . . . 6 2 11 Projectile 5 | . . . 5 . . . . . . . . . . . AOE 41 | . . . . . . . . . . 41 . . . . Terrain Rammed 1 | . . . . . . . . . . . . . . 1 Walls Destroyed . | . . . . . . . . . . . . . . . Machines Disabled . | . . . . . . . . . . . . . . . Actions | -11 -10 -10 -9 -8 -7 -7 -7 -7 -6 -6 -6 -5 -4 -3 --------- Run | Yrd Mat Min Mat Mat Fac Was Fac DSF Fac Low Low Fac Fac Res Total 9013 | 38 707 668 782 279 1701 101 310 102 125 1031 573 1053 535 1008 Wait 677 | . 38 27 126 29 286 1 5 1 2 3 11 20 48 80 Move 7836 | 30 598 605 563 230 1327 98 292 80 121 1010 559 972 472 879 Hop 4 | . . . 1 . . . . . . 1 . 1 . 1 Pick Up 56 | 2 11 4 9 1 9 1 2 . . 3 1 5 1 7 Fast Attach 44 | 6 3 . 3 2 9 . 1 . . 4 . 10 3 3 Attach 41 | . 3 . 10 4 3 1 . 3 1 4 . 6 2 4 Detach 18 | . 1 . 5 3 2 . . . 1 1 . 4 1 . Swap 26 | . 7 5 3 . 4 . 2 . . . . . 2 3 Drop 53 | . 6 7 7 1 11 . 3 . . . 2 4 2 10 Fire 137 | . 40 17 53 . . . . . . 5 . 22 . . Melee 94 | . . . 2 9 50 . 5 . . . . 9 4 15 Ram 1 | . . . . . . . . . . . . . . 1 Kick 3 | . . 3 . . . . . . . . . . . . Crush . | . . . . . . . . . . . . . . . Escape Stasis 23 | . . . . . . . . 18 . . . . . 5 Rewire . | . . . . . . . . . . . . . . . Trap . | . . . . . . . . . . . . . . . Miscellaneous . | . . . . . . . . . . . . . . . Route ------- -11/Scrapyard -10/Materials (discovered 3 exits: *Mat x2 / *Min) -10/Mines (discovered 2 exits: *Mat x2) -9/Materials -8/Materials -7/Factory -7/Waste -7/Factory -7/DSF -6/Factory -6/Lower Caves -6/Lower Caves -5/Factory (discovered 3 exits: *Fac / Upp x2) -4/Factory (discovered 3 exits: *Res / [*Ext] / [*Arm]) -3/Research History --------- Turn | Location | Event 2 | -11/Scrapyard | Met Revision 17 9 | -11/Scrapyard | Discovered new exit (range 16) 55 | -11/Scrapyard | Entered Materials 317 | -10/Materials | Build established: Mutant 699 | -10/Materials | Discovered new exit (range 16) 725 | -10/Materials | Identified exit to Materials 872 | -10/Materials | Discovered new exit (range 16) 954 | -10/Materials | Identified exit to Mines 1033 | -10/Materials | Discovered exit to Materials (range 10) 1190 | -10/Materials | Entered Mines 1199 | -10/Mines | Escorted by a lone wolf Derelict 1219 | -10/Mines | Learned location of Storage (-7) 1227 | -10/Mines | A weapon hastily lodged in a ceiling crevice suddenly fell to the ground 1405 | -10/Mines | Discovered exit to Materials (range 8) 1481 | -10/Mines | Joined a pair of Derelicts in attacking an 0b10 outpost 1619 | -10/Mines | Met a Derelict who couldn't figure out how to use a Trap Extractor 1669 | -10/Mines | Discovered exit to Materials (range 12) 2110 | -10/Mines | Entered Materials 2110 | -9/Materials | Evolved 2 slots: Utility x2 2339 | -9/Materials | Discovered new exit (range 8) 2349 | -9/Materials | Identified exit to Materials 2634 | -9/Materials | Central database locked down 2973 | -9/Materials | Entered another Materials area 2973 | -8/Materials | Evolved 2 slots: Propulsion x2 3112 | -8/Materials | Discovered new exit (range 10) 3120 | -8/Materials | Entered Factory 3120 | -7/Factory | Evolved 2 slots: Power x1, Utility x1 4049 | -7/Factory | Build established: Scout 4090 | -7/Factory | Discovered new exit (range 5) 4092 | -7/Factory | Identified exit to Factory 4169 | -7/Factory | Sucked down chute 4169 | -7/Factory | Entered Waste 4173 | -7/Waste | Spotted C-40 Crusher 4176 | -7/Waste | Spotted C-40 Crusher 4178 | -7/Waste | Spotted C-40 Crusher 4182 | -7/Waste | Spotted C-40 Crusher 4184 | -7/Waste | EMP discharged 4184 | -7/Waste | System corruption reached 10% 4192 | -7/Waste | Spotted C-40 Crusher 4192 | -7/Waste | Spotted C-40 Crusher 4206 | -7/Waste | Discovered new exit (range 11) 4216 | -7/Waste | Identified exit to Factory 4217 | -7/Waste | Entered Factory 4368 | -7/Factory | Identified exit to DSF 4374 | -7/Factory | Entered DSF 4403 | -7/DSF | Additional patrols routed to DSF 4430 | -7/DSF | Discovered exit to Factory (range 14) 4437 | -7/DSF | Entered Factory 4437 | -6/Factory | Evolved 2 slots: Propulsion x1, Utility x1 4460 | -6/Factory | Lost 11 parts (2p6n3u) 4491 | -6/Factory | Discovered new exit (range 16) 4501 | -6/Factory | Identified exit to Lower Caves 4502 | -6/Factory | Entered Lower Caves 4524 | -6/Lower Caves | Spotted B-75 Beast 4717 | -6/Lower Caves | Build established: Mutant 4816 | -6/Lower Caves | Learned Factory garrison access intel 4823 | -6/Lower Caves | Learned location of 2 exits from Factory 4876 | -6/Lower Caves | Discovered new exit (range 5) 4877 | -6/Lower Caves | Identified exit to Lower Caves 4944 | -6/Lower Caves | Entered another Lower Caves area 5003 | -6/Lower Caves | Discovered new exit (range 8) 5006 | -6/Lower Caves | Identified exit to Factory 5041 | -6/Lower Caves | Build established: Scavenger-Sprinter 5108 | -6/Lower Caves | Attracted the attention of an 0b10 checkpoint 5108 | -6/Lower Caves | Core integrity fell below 50% 5136 | -6/Lower Caves | Entered Factory 5136 | -5/Factory | Evolved 2 slots: Utility x2 5137 | -5/Factory | Identified exit to Upper Caves 5138 | -5/Factory | Loaded intel: 4 garrison access locations 5403 | -5/Factory | Allied Derelicts emerged from ambush trap array 5549 | -5/Factory | Discovered new exit (range 12) 5552 | -5/Factory | Identified exit to Factory 5552 | -5/Factory | Entered another Factory area 5552 | -4/Factory | Evolved 2 slots: Propulsion x1, Utility x1 5653 | -4/Factory | Discovered new exit (range 12) 5694 | -4/Factory | Discovered new exit (range 13) 5755 | -4/Factory | Discovered new exit (range 5) 5758 | -4/Factory | Identified exit to Research 5758 | -4/Factory | Entered Research 5758 | -3/Research | Evolved 2 slots: Propulsion x1, Utility x1 6049 | -3/Research | Lost 5 parts (1n2u2w) 6091 | -3/Research | Spotted B-86 Titan 6133 | -3/Research | Lost 7 parts (1p4n2u) 6153 | -3/Research | Core integrity fell below 50% 6172 | -3/Research | Lost 3 parts (1n1u1w) 6191 | -3/Research | Core integrity fell below 20% 6215 | -3/Research | Destroyed by P-80 Master with Gamma Rifle Last Messages --------------- 06156_ S-43 Plague destroyed. 06159_ K-01 Serf collects debris. 06165_ W-44 Eye sends out distress signal. 06171_ K-01 Serf cleans the Reaction Chamber. 06174_ K-01 Serf destroyed. 06178_ Acquired System Shield. 06199_ K-01 Serf destroyed. 06204_ Triggered Stasis Trap. 06204_ A bubble of rippling energy engulfs the area. 06204_ Field strength at 84. 06204_ Field strength at 68. 06205_ Impulse Thruster Array destroyed. 06205_ Field strength at 52. 06206_ S-43 Plague destroyed. 06206_ Field strength at 34. 06207_ Field strength at 23. 06208_ Field strength at 17. 06209_ Stasis field depleted. 06209_ Door malfunctions. Map ----- +----------------------------------------------------+ | ?????????????????????????????????????????????????? | | ?????????????????????????????????????????????????? | | ?????????????????????????????????????????????????? | | ?????????????????????????????????????????????????? | | ?????????????????????????????????????????????????? | | ?????????????????????????????????????????????????? | | ?????????????????????????????????????????????????? | | ?????????????????????????????????????????????????? | | ?????????????????????????????????????????????????? | | ?????????????????????????????????????????????????? | | ?????????????????????????????????????????????????? | | ########?????????????????????????????????????????? | | ! = #?????????????????????????????????????????? | | #?????????????????????????????????????????? | | #?????????????????????????????????????????? | | !!* #?????????????????????????????????????????? | | !** #?????????????????????????????????????????? | | !* #?????????????????????????????????????????? | | #?????????????????????????????????????????? | | #?????????????????????????????????????????? | | #?????????????????????????????????????????? | | #/#############+######+####??????????????????????? | | %= ^ #??????????????????????? | | [ p #######????????????????? | | p s =%=^ ?????????????????? | | s s * R @#??????????????????????? | | R s s s #??????????????????????? | | ###############/######+##;###????????????????????? | | ????????????# # #????????????????????? | | ????????????# # #????????????????????? | | ????????????# # #????????????????????? | | ????????????# # #????????????????????? | | ????????????# # #????????????????????? | | ????????????# # #????????????????????? | | ????????????# # #????????????????????? | | ????????????# # #????????????????????? | | ????????????# # #????????????????????? | | ????????????########## #????????????????????? | | ?????????????????????# #????????????????????? | | ?????????????????????# #????????????????????? | | ?????????????????????# #????????????????????? | | ?????????????????????########????????????????????? | | ?????????????????????????????????????????????????? | | ?????????????????????????????????????????????????? | | ?????????????????????????????????????????????????? | | ?????????????????????????????????????????????????? | | ?????????????????????????????????????????????????? | | ?????????????????????????????????????????????????? | | ?????????????????????????????????????????????????? | | ?????????????????????????????????????????????????? | +----------------------------------------------------+ Best States ------------- Heat Dissipation 46 Energy Generation 24 Energy Capacity 250 Matter Stores 300 Matter Capacity 350 Sight Range 16 Robot Scan Range 16 Terrain Scan Density 85 ECM Strength 1 Jamming Range 12 Additional Mass Support 9 Armor Coverage 600 Propulsion Shielding 33 Evasion (%) 64 Recoil Reduction 2 Offensive Hacking 10 Item Schematics ----------------- None Robot Schematics ------------------ None Fabricated ------------ Nothing Repaired ---------- Nothing Studied --------- Grenade Launcher | -9/Materials | Hacked Flail | -9/Materials | Hacked Cesium-ion Thruster | -5/Factory | Hacked Antigrav System | -5/Factory | Hacked Mic. Fission Core | -3/Research | Hacked Alien Tech Used ----------------- None Achievements -------------- Dangerous Findings Origins Slippery One Watch This! Window Shopping Challenges ------------ None Game ------ Seed PrecisionPowerField Manual? 0 Play Time 01:38:42 Cumulative 24.2 hours Start 2025.12.31 @ 00:02:55 End 2025.12.31 @ 01:40:15 Sessions 1 Manual Loads 0 Difficulty Rogue Special Mode None Game No. 23 Rogue 23 Adventurer 0 Explorer 0 Win Type - Total 0 Types 0/0/0/0/0/0/0/0/0/0 Lore% 24 Gallery% 22 Achievement% 20 Wizard Run 0 Options --------- Layout 1 ASCII 0 Keyboard 0 Movement Numpad Keybinds 0 Fullscreen 1 Font 24/Smallcaps Map View 50x40 Zoom Use 0% Tactical HUD 1 Map Filters NONE Filters NONE Steam 1 RUN: b7299129-7ceb-44bd-b259-bee4447e1eb1